Cogmind - Beta 11 X4 @@@ ROGUE MODE // 2021.05.26 @ 19:04:36 Player: Joshua Result: Destroyed by S-27 Virus with Autogun Performance ------------- Evolutions (4) 2000 Regions Visited (9) 1800 Robots Destroyed (97) 485 Value Destroyed (2863) 2863 Prototype IDs (8) 160 Alien Tech Used (0) 0 Bonus (138) 138 TOTAL SCORE: 7446 Bonus ------- High Alert Combat Kills 139 Follower Combat Kills 20 Friendly Fire -21 Cogmind --------- Core Integrity 0/850 Matter 35/300 Energy 100/100 System Corruption 7% Temperature Cool (0) Movement Core (50) Location -6/Factory Parts ------- > --- POWER (1) -------- (None) > --- PROPULSION (4) --- (None) > --- UTILITY (7) ------ (None) > --- WEAPON (3) ------- (None) > --- INVENTORY (5) ---- Faulty Light Neutrino Core Fusion Compressor Improved Cooling System Hacking Suite Mini Smartbomb Launcher Peak State ------------ > --- POWER ------------ Improved Deuterium Engine > --- PROPULSION ------- Improved Carbon-fiber Leg Flexi-carbon Leg Enhanced Flexi-carbon Leg Enhanced Flexi-carbon Leg > --- UTILITY ---------- Large Storage Unit Improved Energy Well Machine Analyzer Advanced Visual Processing Unit Advanced Targeting Computer Core Analyzer > --- WEAPON ----------- Heavy Flak Cannon Tri-rail Accelerator > --- INVENTORY -------- Light Fission Core Fusion Compressor Improved Cooling System Huge Storage Unit Experimental Sensor Array Hacking Suite Makeshift System Restoration Module High-powered Tractor Beam Heavy Assault Rifle Heavy Proton Missile Launcher Mini Grenade Launcher Mini Smartbomb Launcher [Rating: 72] Favorites ----------- Power Light Nuclear Core Engine Light Ion Engine Power Core Light Nuclear Core Propulsion Aluminum Leg Treads Light Treads Leg Aluminum Leg Wheel Compact Wheel Utility Advanced Visual Processing Unit Device Heat Sink Storage Medium Storage Unit Processor Advanced Visual Processing Unit Protection Reactive Plating Weapon Light Assault Rifle Energy Gun Heavy Laser Ballistic Gun Light Assault Rifle Ballistic Cannon Gauss Cannon Launcher Mini Grenade Launcher Build | -11 -10 -10 -10 -9 -8 -7 -7 -7 -6 ------- Run | Scr Mat Min Exi Min Mat Fac Low Low Fac Slots Evolved 8 | . . . . . 4 2 . . 2 Power . | . . . . . . . . . . Propulsion 2 | . . . . . 1 1 . . . Utility 5 | . . . . . 2 1 . . 2 Weapon 1 | . . . . . 1 . . . . Parts Attached 104 | . 2 8 . 11 8 18 15 1 41 Power 11 | . . 1 . 2 1 . 4 . 3 Engine 3 | . . . . 1 . . . . 2 Core 8 | . . 1 . 1 1 . 4 . 1 Reactor . | . . . . . . . . . . Propulsion 18 | . . 3 . 1 2 3 2 1 6 Treads 3 | . . . . . 1 1 . . 1 Leg 14 | . . 3 . 1 . 2 2 1 5 Wheel 1 | . . . . . 1 . . . . Hover . | . . . . . . . . . . Flight . | . . . . . . . . . . Utility 39 | . 2 1 . . 4 12 5 . 15 Device 20 | . 1 1 . . 3 4 2 . 9 Storage 5 | . 1 . . . . 3 . . 1 Processor 5 | . . . . . 1 3 . . 1 Hackware . | . . . . . . . . . . Protection 9 | . . . . . . 2 3 . 4 Artifact . | . . . . . . . . . . Weapon 36 | . . 3 . 8 1 3 4 . 17 Energy Gun 2 | . . . . 1 . . . . 1 Energy Cannon . | . . . . . . . . . . Ballistic Gun 18 | . . 3 . 5 1 3 1 . 5 Ballistic Cannon 7 | . . . . . . . 1 . 6 Launcher 9 | . . . . 2 . . 2 . 5 Special Weapon . | . . . . . . . . . . Impact Weapon . | . . . . . . . . . . Slashing Weapon . | . . . . . . . . . . Piercing Weapon . | . . . . . . . . . . Special Melee Weapon . | . . . . . . . . . . Unidentified Prototypes 7 | . . . . . 1 . . . 6 Parts Lost 35 | . . 2 . 2 . 1 11 . 19 Power 8 | . . 1 . 1 . . 3 . 3 Propulsion 9 | . . . . . . . 4 . 5 Utility 8 | . . 1 . . . . 1 . 6 Weapon 10 | . . . . 1 . 1 3 . 5 Highest Loss Streak 16 | . . 1 . 1 . 1 3 . 16 Average Slot Usage (%) 94 | . 90 99 100 99 92 99 88 69 81 Engine 3 | . 14 5 . 7 8 . . . 3 Core 6 | . . 7 14 6 . 7 5 7 2 Treads 1 | . . . . . 3 5 . . 1 Leg 24 | . 28 28 28 28 18 24 24 15 16 Device 10 | . 4 13 14 14 17 13 1 . 6 Storage 9 | . 14 14 14 14 9 7 7 7 6 Processor 9 | . . . . . 7 12 23 23 19 Protection 2 | . . . . . . 3 5 7 7 Energy Gun 1 | . 14 . . . . . . . 3 Ballistic Gun 20 | . 14 27 28 27 27 23 16 . 5 Ballistic Cannon 1 | . . . . . . . 3 . 4 Naked Turns 18 | . . . . . . . . . 18 Heaviest Build 61 | 12 18 20 19 19 22 52 56 29 61 Greatest Support 94 | 20 20 20 20 23 23 53 63 33 94 Greatest Overweight (x) 2 | . . . . . . 1 1 . 2 Average Overweight (x) . | . . . . . . . . . . Largest Inventory Capacity 25 | 8 10 10 10 10 10 25 15 15 15 Average Capacity 12 | 8 9 10 10 10 10 13 15 15 14 Most Carried 15 | 6 10 10 10 10 10 15 15 13 15 Average Carried 11 | 6 8 9 10 9 9 12 14 13 13 Final Capacity 15 | 8 10 10 10 10 10 15 15 15 5 Final Carried 15 | 6 10 10 10 10 10 15 14 13 5 Class Distribution -------------------- 28% | Scavenger-Mutant 24% | Mutant 23% | Scavenger-Gunner 8% | Gunner 8% | Scavenger-Skirmisher 5% | Tank Dominant Class ---------------- Mutant | -10/Materials Mutant | -10/Mines Scavenger-Mutant | -10/Exiles Scavenger-Mutant | -9/Mines Scavenger-Skirmisher | -8/Materials Scavenger-Gunner | -7/Factory Gunner | -7/Lower Caves Mutant | -7/Lower Caves Tank | -6/Factory Resources | -11 -10 -10 -10 -9 -8 -7 -7 -7 -6 ----------- Run | Scr Mat Min Exi Min Mat Fac Low Low Fac Matter Collected 2279 | 200 29 312 . 177 . 587 313 17 644 Remotely 668 | . . . . . . 235 26 . 407 Salvage Created 2929 | . 139 715 . 291 . 880 357 . 547 Parts 171 | . 9 43 . 35 . 39 11 . 34 Haulers Intercepted 1 | . . . . . . . . . 1 Recyclers Shooed 8 | . . . . . . 6 . . 2 Parts Field Recycled . | . . . . . . . . . . Retrieved Matter . | . . . . . . . . . . Parts Self-Destructed 8 | . . . . . . . 8 . . Prevented . | . . . . . . . . . . Kills | -11 -10 -10 -10 -9 -8 -7 -7 -7 -6 ------- Run | Scr Mat Min Exi Min Mat Fac Low Low Fac Combat Hostiles Destroyed 73 | . . 20 . 16 . 8 10 . 19 Guns 48 | . . 20 . 11 . 8 3 . 6 Cannons 6 | . . . . . . . 2 . 4 AOE 19 | . . . . 5 . . 5 . 9 Classes Destroyed 18 | . 3 3 . . . 4 3 . 5 Worker 4 | . . 1 . . . 3 . . . Builder 4 | . . . . . . 2 . . 2 Tunneler 4 | . 1 1 . 1 . 1 . . . Hauler 1 | . . . . . . . . . 1 Recycler 6 | . 1 1 . . . 4 . . . Mechanic 1 | . . . . . . . . . 1 Operator 1 | . . . . . . . . . 1 Watcher 3 | . 1 . . . . 2 . . . Swarmer 32 | . . 11 . 13 . . 1 . 7 Grunt 20 | . . 9 . 3 . 4 4 . . Brawler 2 | . . . . . . . 2 . . Duelist 1 | . . . . . . . 1 . . Protector 1 | . . . . . . . . . 1 Sentry 3 | . . . . . . 1 1 . 1 Specialist 1 | . . . . . . . . . 1 Hunter 7 | . . . . . . 1 . . 6 Programmer 5 | . . . . . . 2 . . 3 Behemoth 1 | . . . . . . . 1 . . Best Kill Streak 7 | . 3 4 . 5 . 3 5 . 7 Combat Bots Only 5 | . . 4 . 4 . 2 5 . 5 Max Kills in Single Turn 4 | . 2 1 . 3 . 1 2 . 4 Gunslinging . | . . . . . . . . . . Exploded 3 | . . . . 3 . . 2 . 3 Melee . | . . . . . . . . . . Uniques/NPCs Destroyed 1 | . . . . 1 . . . . . YI-UF0 (-9/Mines) Combat | -11 -10 -10 -10 -9 -8 -7 -7 -7 -6 -------- Run | Scr Mat Min Exi Min Mat Fac Low Low Fac Damage Taken 6084 | . . 481 . 281 . 652 1398 . 3272 Core 1240 | . . 86 . 74 . 42 174 . 864 Absorbed by Shields . | . . . . . . . . . . Core Remaining (%) 76 | 100 . . . 36 100 . . 69 . Volleys Fired 229 | . 3 44 . 29 2 61 28 . 62 Largest 3 | . 2 2 . 2 3 3 3 . 3 Hottest 137 | . 60 40 . 40 60 81 101 . 137 Shots Fired 533 | . 6 88 . 56 6 183 62 . 132 Gun 456 | . 6 88 . 54 6 183 46 . 73 Cannon 57 | . . . . . . . 9 . 48 Launcher 20 | . . . . 2 . . 7 . 11 Special . | . . . . . . . . . . Kinetic 484 | . 3 88 . 54 6 183 55 . 95 Thermal 26 | . . . . . . . . . 26 Explosive 18 | . . . . 2 . . 7 . 9 Electromagnetic 5 | . 3 . . . . . . . 2 Robot Hit Streak 19 | . 3 10 . 5 5 19 8 . 13 Robot Miss Streak 6 | . 1 4 . 6 2 6 5 . 4 Penetration Max 1 | . . . . . . 1 1 . . Secondary Targets 2 | . . 1 . . . 1 . . . Max Gunslinging Chain 1 | . . 1 . . . 1 . . . Shots Hit Robots 345 | . 5 55 . 25 5 125 54 . 76 Core Hits 221 | . 4 33 . 24 2 51 35 . 72 Critical Kills . | . . . . . . . . . . Critical Parts Destroyed 2 | . . . . . . 2 . . . Critical Strikes 10 | . . . . . . 2 1 . 7 Destroy 2 | . . . . . . 2 . . . Blast 8 | . . . . . . . 1 . 7 Melee Attacks . | . . . . . . . . . . Impact . | . . . . . . . . . . Slashing . | . . . . . . . . . . Piercing . | . . . . . . . . . . Sneak Attacks . | . . . . . . . . . . Combat Hostiles . | . . . . . . . . . . Follow-up Attacks . | . . . . . . . . . . Damage Inflicted 7816 | . 101 675 . 468 39 1379 1854 . 3300 Guns 3874 | . 101 674 . 214 39 1379 850 . 617 Cannons 1008 | . . . . . . . 251 . 757 Explosions 2906 | . . . . 254 . . 752 . 1900 Melee . | . . . . . . . . . . Ramming 28 | . . 1 . . . . 1 . 26 Kinetic 4493 | . 40 674 . 214 39 1379 1101 . 1046 Thermal 451 | . . . . . . . . . 451 Explosive 2733 | . . . . 254 . . 752 . 1727 Electromagnetic 111 | . 61 . . . . . . . 50 Impact . | . . . . . . . . . . Slashing . | . . . . . . . . . . Piercing . | . . . . . . . . . . Highest Corruption 7 | . . . . . . 1 2 2 7 Average Corruption 1 | . . . . . . 1 1 2 6 Corruption Purged . | . . . . . . . . . . Effects 6 | . . . . . . . 2 . 4 Message Errors 4 | . . . . . . . 2 . 2 Matter Fused 1 | . . . . . . . . . 1 Energy Discharges 1 | . . . . . . . . . 1 Overload Shots . | . . . . . . . . . . Overflow Damage 158 | . . . . 25 . . 41 . 92 Projectiles 62 | . . . . . . . 41 . 21 Explosions 96 | . . . . 25 . . . . 71 Melee . | . . . . . . . . . . Knockbacks 19 | . . . . . . . 3 . 16 Impact . | . . . . . . . . . . Kinetic 19 | . . . . . . . 3 . 16 Secondary . | . . . . . . . . . . Self-Inflicted Damage 129 | . . . . 40 . . 36 . 53 Shots 5 | . . . . 1 . . 2 . 2 Rammed 2 | . . . . . . . . . 2 Targets Rammed 4 | . . 1 . . . . 1 . 2 Kicked 2 | . . 1 . . . . 1 . . Crushed . | . . . . . . . . . . Highest Temperature 207 | . . 28 . . . 30 74 . 207 Average Temperature 38 | . . 11 . . . 9 26 . 60 Received Heat Transfer 861 | . . 210 . 21 . 228 267 . 135 Siege Activations . | . . . . . . . . . . Robots Corrupted . | . . . . . . . . . . Combat Hostiles . | . . . . . . . . . . Parts Fried . | . . . . . . . . . . Impact Corruptions . | . . . . . . . . . . Robots Melted . | . . . . . . . . . . Combat Hostiles . | . . . . . . . . . . Parts Melted 2 | . . . . 2 . . . . . Heat Transferred 685 | . . . . . . . . . 685 Parts Sabotaged . | . . . . . . . . . . Parts Stolen . | . . . . . . . . . . Parts Stripped . | . . . . . . . . . . Power Chain Reactions . | . . . . . . . . . . Missiles Intercepted . | . . . . . . . . . . Alert | -11 -10 -10 -10 -9 -8 -7 -7 -7 -6 ------- Run | Scr Mat Min Exi Min Mat Fac Low Low Fac Peak Influence 758 | . 46 305 . 400 90 476 . . 758 Initial 85 | . . 17 . . 85 40 . . 29 Average 178 | . 26 141 . 184 87 229 . . 206 Maximum Alert Level 3 | . . 1 . 2 . 2 . . 3 Low Security (%) 62 | 100 100 87 . 30 100 36 . . 81 Level 1 29 | . . 12 . 66 . 49 . . . Level 2 5 | . . . . 3 . 14 . . 3 Level 3 2 | . . . . . . . . . 14 Level 4 . | . . . . . . . . . . Level 5 . | . . . . . . . . . . High Security . | . . . . . . . . . . Max Security . | . . . . . . . . . . Squads Dispatched 11 | . 1 . . . . 2 . . 8 Investigation 1 | . . . . . . 1 . . . Extermination 3 | . . . . . . 1 . . 2 Reinforcement 4 | . 1 . . . . . . . 3 Assault . | . . . . . . . . . . Garrison 3 | . . . . . . . . . 3 Intercept . | . . . . . . . . . . Construction Impeded 1 | . . . . . . . . . 1 Haulers Reinforced . | . . . . . . . . . . Cargo Convoy Interrupts 1 | . . . . . . . . . 1 Stealth | -11 -10 -10 -10 -9 -8 -7 -7 -7 -6 --------- Run | Scr Mat Min Exi Min Mat Fac Low Low Fac Distress Signals 4 | . . 1 . . . . . . 3 Communications Jammed . | . . . . . . . . . . Distress Signals . | . . . . . . . . . . Times Spotted 113 | . 2 24 . 19 . 17 13 . 38 Peak Tracking Total 11 | . 2 4 . 4 . 2 5 . 11 Tactical Retreats 9 | . . 2 . 2 . 3 . . 2 Traps | -11 -10 -10 -10 -9 -8 -7 -7 -7 -6 ------- Run | Scr Mat Min Exi Min Mat Fac Low Low Fac Traps Triggered . | . . . . . . . . . . Indirectly . | . . . . . . . . . . Trap Hack Attempts . | . . . . . . . . . . Triggered . | . . . . . . . . . . Disarmed . | . . . . . . . . . . Reprogrammed . | . . . . . . . . . . Reused . | . . . . . . . . . . Traps Extracted . | . . . . . . . . . . Installed . | . . . . . . . . . . Triggered . | . . . . . . . . . . Machines | -11 -10 -10 -10 -9 -8 -7 -7 -7 -6 ---------- Run | Scr Mat Min Exi Min Mat Fac Low Low Fac Machines Disabled 8 | . . . . 1 . 1 . . 6 Max in Single Turn 4 | . . . . 1 . 1 . . 4 Garrison Access 1 | . . . . . . 1 . . . Machines Sabotaged . | . . . . . . . . . . Garrisons Compromised . | . . . . . . . . . . Overloaded Fab Kills . | . . . . . . . . . . Fab Network Shutdowns . | . . . . . . . . . . Hacking | -11 -10 -10 -10 -9 -8 -7 -7 -7 -6 --------- Run | Scr Mat Min Exi Min Mat Fac Low Low Fac Machines Accessed 14 | . 3 . 1 . 1 6 . . 3 Terminals 10 | . 3 . . . 1 3 . . 3 Fabricators . | . . . . . . . . . . Repair Stations . | . . . . . . . . . . Recycling Units . | . . . . . . . . . . Scanalyzers 2 | . . . . . . 2 . . . Garrison Access 1 | . . . . . . 1 . . . Total Hacks 41 | . 9 . 1 . 3 14 . . 14 Successful 24 | . 4 . 1 . 1 8 . . 10 Failed 17 | . 5 . . . 2 6 . . 4 Catastrophic 2 | . 1 . . . . 1 . . . Database Lockouts . | . . . . . . . . . . Manual 28 | . 7 . . . 3 5 . . 13 Terminals 32 | . 9 . . . 3 6 . . 14 Fabricators . | . . . . . . . . . . Repair Stations . | . . . . . . . . . . Recycling Units . | . . . . . . . . . . Scanalyzers 5 | . . . . . . 5 . . . Garrison Access 3 | . . . . . . 3 . . . Terminal Hacks 7 | . 1 . 1 . . 1 . . 4 Record 1 | . . . 1 . . . . . . Branch Access Points 2 | . . . . . . 1 . . 1 Terminal Index 1 | . . . . . . . . . 1 Locate Traps 2 | . 1 . . . . . . . 1 Hauler Manifests 1 | . . . . . . . . . 1 Fabricator Hacks . | . . . . . . . . . . Repair Station Hacks . | . . . . . . . . . . Recycling Unit Hacks . | . . . . . . . . . . Scanalyzer 5 | . . . . . . 5 . . . Insert Component 2 | . . . . . . 2 . . . Analyze 3 | . . . . . . 3 . . . Garrison Access Hacks . | . . . . . . . . . . Unauthorized Hacks 12 | . 3 . . . 1 2 . . 6 Terminals 11 | . 3 . . . 1 1 . . 6 Track 3 | . 1 . . . . . . . 2 Assimilate 1 | . . . . . . . . . 1 Botnet 5 | . 1 . . . 1 1 . . 2 Operators 2 | . 1 . . . . . . . 1 Fabricators . | . . . . . . . . . . Repair Stations . | . . . . . . . . . . Recycling Units . | . . . . . . . . . . Scanalyzers . | . . . . . . . . . . Garrison Access 1 | . . . . . . 1 . . . Jam 1 | . . . . . . 1 . . . Data Cores Recovered . | . . . . . . . . . . Used . | . . . . . . . . . . Hacking Detections 12 | . 3 . . . 1 5 . . 3 Full Trace Events . | . . . . . . . . . . Feedback Events . | . . . . . . . . . . Feedback Blocked . | . . . . . . . . . . Robot Schematics Acquired . | . . . . . . . . . . Robots Built . | . . . . . . . . . . Matter . | . . . . . . . . . . Time . | . . . . . . . . . . Total Robot Build Rating . | . . . . . . . . . . Part Schematics Acquired 2 | . . . . . . 2 . . . Parts Built . | . . . . . . . . . . Matter . | . . . . . . . . . . Time . | . . . . . . . . . . Total Part Build Rating . | . . . . . . . . . . Parts Repaired . | . . . . . . . . . . Time . | . . . . . . . . . . Parts Recycled . | . . . . . . . . . . Recycled Matter . | . . . . . . . . . . Retrieved Matter . | . . . . . . . . . . Retrieved Components . | . . . . . . . . . . Parts Scanalyzed 2 | . . . . . . 2 . . . Part Schematics Acquired 2 | . . . . . . 2 . . . Parts Damaged . | . . . . . . . . . . Bothacking | -11 -10 -10 -10 -9 -8 -7 -7 -7 -6 ------------ Run | Scr Mat Min Exi Min Mat Fac Low Low Fac Used RIF Installer . | . . . . . . . . . . Robots Hacked . | . . . . . . . . . . Non-combat . | . . . . . . . . . . Combat . | . . . . . . . . . . Robot Hacks Applied . | . . . . . . . . . . Relay Couplers Released . | . . . . . . . . . . Robots Rewired . | . . . . . . . . . . Allies Hacked . | . . . . . . . . . . Hacks Repelled . | . . . . . . . . . . Allies | -11 -10 -10 -10 -9 -8 -7 -7 -7 -6 -------- Run | Scr Mat Min Exi Min Mat Fac Low Low Fac Total Allies 1 | . . . . 1 . . . . . Largest Group 1 | . . . . 1 1 1 . . . Highest-Rated Group 31 | . . . . 31 31 31 . . . Highest-Rated Ally 31 | . . . . 31 31 31 . . . Total Orders . | . . . . . . . . . . Ally Attacks 20 | . . . . 3 . 17 . . . Total Damage 171 | . . . . 44 . 127 . . . Kills 2 | . . . . 1 . 1 . . . Allies Corrupted . | . . . . . . . . . . Allies Melted . | . . . . . . . . . . Intel | -11 -10 -10 -10 -9 -8 -7 -7 -7 -6 ------- Run | Scr Mat Min Exi Min Mat Fac Low Low Fac Robot Analysis Total . | . . . . . . . . . . Derelict Logs Recovered 4 | . . 1 . 2 . . 1 . . Drone Launches . | . . . . . . . . . . Drone Recoveries . | . . . . . . . . . . Exploration | -11 -10 -10 -10 -9 -8 -7 -7 -7 -6 ------------- Run | Scr Mat Min Exi Min Mat Fac Low Low Fac Turns Passed 5228 | 5 198 967 281 762 202 1164 815 55 779 Spaces Moved 3388 | 5 151 678 235 555 153 724 471 44 372 Core 33 | . . . . . . . . . 33 Treads 28 | . . . . . . 28 . . . Legs 3327 | 5 151 678 235 555 153 696 471 44 339 Wheels . | . . . . . . . . . . Hover . | . . . . . . . . . . Flight . | . . . . . . . . . . Fastest Speed 50 | 120 120 120 120 120 120 120 120 125 50 Average Speed 128 | 120 120 120 120 120 120 129 144 125 143 Slowest Speed 280 | 120 120 120 120 120 120 200 210 125 280 Overloaded Moves . | . . . . . . . . . . Propulsion Burnouts . | . . . . . . . . . . Robots Hopped . | . . . . . . . . . . Cave-ins Triggered . | . . . . . . . . . . Exploration Rate (%) 43 | 2 34 99 62 97 19 25 66 15 11 Regions Visited 9 Branch Regions 5 Pre-discovered Areas 3 | . . 1 1 1 . . . . . Known Exits Taken 2 | . . . . . 1 1 . . . Unknown Exits Taken 7 | 1 1 1 1 1 . . 1 1 . Scrap Searched 11 | . . 3 . 4 . . 3 1 . Spaces Dug 11 | . . . . . . . 10 . 1 Terrain Destroyed 144 | . . . . 17 . . 36 . 91 Melee . | . . . . . . . . . . Projectile 19 | . . . . . . . 1 . 18 AOE 125 | . . . . 17 . . 35 . 73 Terrain Rammed . | . . . . . . . . . . Walls Destroyed . | . . . . . . . . . . Machines Disabled . | . . . . . . . . . . Actions | -11 -10 -10 -10 -9 -8 -7 -7 -7 -6 --------- Run | Scr Mat Min Exi Min Mat Fac Low Low Fac Total 3867 | 4 162 748 234 605 169 842 553 44 506 Wait 57 | . 1 5 . 2 . 7 33 . 9 Move 3379 | 4 150 677 234 554 152 723 470 43 372 Hop . | . . . . . . . . . . Pick Up 46 | . 4 4 . 4 3 15 4 . 12 Fast Attach 28 | . 2 3 . 1 3 6 1 . 12 Attach 29 | . . . . 1 3 2 7 1 15 Detach 13 | . 1 . . . 1 3 2 . 6 Swap 47 | . . 5 . 9 2 10 7 . 14 Drop 34 | . 1 9 . 5 3 15 . . 1 Fire 229 | . 3 44 . 29 2 61 28 . 62 Melee . | . . . . . . . . . . Ram 2 | . . . . . . . . . 2 Kick 2 | . . 1 . . . . 1 . . Crush . | . . . . . . . . . . Escape Stasis . | . . . . . . . . . . Rewire 1 | . . . . . . . . . 1 Trap . | . . . . . . . . . . Miscellaneous . | . . . . . . . . . . Route ------- -11/Scrapyard -10/Materials -10/Mines (discovered 3 exits: [*Mat x2] / *Exi) -10/Exiles -9/Mines (discovered 2 exits: *Mat x2) -8/Materials (discovered 2 exits: *Fac x2) -7/Factory (discovered 3 exits: Sto / *Low x2) -7/Lower Caves -7/Lower Caves -6/Factory (discovered 2 exits: Low x2) History --------- Turn | Location | Event 1 | -11/Scrapyard | Discovered new exit (range 2) 6 | -11/Scrapyard | Entered Materials 171 | -10/Materials | Discovered new exit (range 6) 204 | -10/Materials | Entered Mines 213 | -10/Mines | Met a Derelict bent on vengeance 249 | -10/Mines | Learned location of Zion (-7) 299 | -10/Mines | Discovered new exit (range 12) 312 | -10/Mines | Build established: Mutant 689 | -10/Mines | Found a damaged Exp. Sensor Array with a note attached 692 | -10/Mines | Found Prototype Device 799 | -10/Mines | Discovered new exit (range 8) 870 | -10/Mines | Deemed a non-threat by the Exiles lab entrance 870 | -10/Mines | Discovered new exit (range 5) 1171 | -10/Mines | Entered Exiles 1200 | -10/Exiles | Met 8R-AWN 1221 | -10/Exiles | Met EX-HEX 1275 | -10/Exiles | Met EX-DEC 1321 | -10/Exiles | Build established: Scavenger-Mutant 1369 | -10/Exiles | Met EX-BIN 1443 | -10/Exiles | Discovered new exit (range 10) 1452 | -10/Exiles | Entered Mines 1663 | -9/Mines | YI-UF0 nonchalantly dropped a Grenade Launcher on the ground 1697 | -9/Mines | Discovered new exit (range 8) 1725 | -9/Mines | Discovered new exit (range 6) 1757 | -9/Mines | Core integrity fell below 50% 1870 | -9/Mines | Learned Materials terminal intel 1894 | -9/Mines | Learned location of 1 exit from Materials 1911 | -9/Mines | Escorted by a lone wolf Derelict 1931 | -9/Mines | Learned location of Storage (-7) 2015 | -9/Mines | Allies destroyed YI-UF0 2214 | -9/Mines | Entered Materials 2214 | -8/Materials | Accompanied by 1 ally 2214 | -8/Materials | Evolved 4 slots: Propulsion x1, Utility x2, Weapon x1 2215 | -8/Materials | Identified exit to Factory 2215 | -8/Materials | Identified Exp. Sensor Array 2216 | -8/Materials | Loaded intel: 12 terminal locations 2401 | -8/Materials | Discovered exit to Factory (range 8) 2416 | -8/Materials | Entered Factory 2416 | -7/Factory | Accompanied by 1 ally 2416 | -7/Factory | Evolved 2 slots: Propulsion x1, Utility x1 2796 | -7/Factory | Build established: Scavenger-Gunner 3523 | -7/Factory | Identified exit to Storage 3523 | -7/Factory | Identified exit to Lower Caves 3580 | -7/Factory | Entered Lower Caves 3595 | -7/Lower Caves | Spotted B-75 Beast 3597 | -7/Lower Caves | Learned Factory security intel 3710 | -7/Lower Caves | Destroyed B-75 Beast 3962 | -7/Lower Caves | Attracted the attention of an 0b10 checkpoint 4006 | -7/Lower Caves | Lost 3 parts (1p1n1w) 4291 | -7/Lower Caves | Lost 3 parts (1u2w) 4371 | -7/Lower Caves | Discovered new exit (range 9) 4395 | -7/Lower Caves | Entered another Lower Caves area 4403 | -7/Lower Caves | Discovered new exit (range 18) 4450 | -7/Lower Caves | Entered Factory 4450 | -6/Factory | Evolved 2 slots: Utility x2 4612 | -6/Factory | Identified exit to Lower Caves 4697 | -6/Factory | Garrison activated, responded to threat 5089 | -6/Factory | Cargo convoy interrupted 5100 | -6/Factory | Found Prototype Launcher 5100 | -6/Factory | Identified Mni. Smartbomb Launcher 5130 | -6/Factory | Core integrity fell below 50% 5211 | -6/Factory | Released all parts (11) 5218 | -6/Factory | Core integrity fell below 20% 5229 | -6/Factory | Destroyed by S-27 Virus with Autogun Last Messages --------------- 05211_ U-05 Engineer lays Concrete. 05211_ Penetrated by Slug. 05212_ U-05 Engineer builds a Wall. 05212_ U-05 Engineer lays Concrete. 05213_ MULBQ&DV,Z7L=ZB1|KY6OLM2ZJ|Z,BO ZN5 05213_ U-05 Engineer builds a Wall. 05213_ U-05 Engineer lays Concrete. 05214_ Penetrated by Slug. 05215_ U-05 Engineer lays Concrete. 05216_ U-05 Engineer destroyed. 05217_ U-05 Engineer builds a Wall. 05217_ U-05 Engineer lays Concrete. 05218_ Slug penetrates Wall. 05219_ U-05 Engineer lays Concrete. 05220_ Slammed into U-05 Engineer. 05220_ U-05 Engineer destroyed. 05221_ Acquired 30 matter. 05221_ U-05 Engineer lays Concrete. 05225_ Connecting with Terminal... 05228_ Slammed into P-60 Hacker. Map ----- +----------------------------------------------------+ | ?????????????????????????????????????????????????? | | ?????????????????????????????????????????????????? | | ?????????????????????????????????????????????????? | | ?????????????????????????????????????????????????? | | ?????????????????????????????????????????????????? | | ?????????????????????????????????????"""?"""?????? | | ?????????????????????????????????????"""?"""?????? | | ?????????????????????????????????????"""?"""?????? | | ?????????????????????????????????????????????????? | | ?????????????????????????????????????"""?"""?????? | | ?????????????????????????????????????"""?"""?????? | | ??????????????????>??????????????????"""?"""?????? | | ?????????????????????????????????????????????????? | | ?????????????????????????????????????????????????? | | ?????????????????????????????????????????????????? | | ?????????????????????????????????????????????????? | | ?????????????????????????????????????????????????? | | ?????????????????????????????????????????????????? | | ????????????????????????????????????###########??# | | ????????????????????????????????????############## | | ????????????????????????????????????## | | ????????????????????????????????????## | | ??????????????????????????????######## | | ??????????????????????????????# ## | | ??????????????????# ########### ## | | ??????????????????# p@ ss T # | | ??????????????????############# # | | ??????????????????????????????# # | | ??????????????????????????????### ### | | ???????????????????????????????## # # | | ???????????????????????????? #### #### | | ???????????????????????????? + ! += | | ???????????????????????????? #### ##### ### | | ???????????????????????????????## ### =! | | ????????????????????????????????# #?##### =% | | ????????????????????????"""""""?# #?????## ]* | | ????????????????????????"""""""?# #?????## !!% | | ????????????????????????"""""""?+ %=%!] | | ????????????????????????"""""""?############ #%### | | ???????????????????????????????????########## # ## | | ????????????????????????????????????????## " | | ????????????????????????????????????????## " | | ????????????????????????????????????????## | | ????????????????????????????????????????## """ | | ????????????????????????????????????????## """ | | ????????????????????????????????????????## """ | | ????????????????????????????????????????###### ### | | ????????????????????????????????????????###### ## | | ????????????????????????????????????????????## ## | | ????????????????????????????????????????????## ## | +----------------------------------------------------+ Best States ------------- Heat Dissipation 64 Energy Generation 21 Energy Capacity 750 Matter Stores 300 Matter Capacity 300 Sight Range 20 Terrain Scan Range 16 Terrain Scan Density 10 Armor Coverage 300 Resistance: KI 20 Evasion (%) 55 Targeting Accuracy 8 Core Analysis 6 Recoil Reduction 2 Kinecelleration 30 Item Schematics ----------------- Hacking Suite | -7/Factory | Scanalyzed Prc. Assault Rifle | -7/Factory | Scanalyzed Robot Schematics ------------------ None Fabricated ------------ Nothing Alien Tech Used ----------------- None Achievements -------------- None Challenges ------------ None Game ------ Seed SiegeChipShifter Manual? 0 Play Time 00:52:12 Cumulative 557.4 hours Start 2021.05.22 @ 20:48:30 End 2021.05.26 @ 19:04:36 Sessions 4 Manual Loads 0 Difficulty Rogue Special Mode None Game No. 169 Rogue 169 Adventurer 0 Explorer 0 Win Type - Total 48 Types 26/4/6/3/2/2/3/1/1 Lore% 96 Gallery% 98 Achievement% 91 Wizard Run 0 Options --------- ASCII 1 Keyboard 1 Movement Vi Keybinds 0 Fullscreen 1 Font 12/Terminus Map View 83x54 Tactical HUD 1 Map Filters NONE Filters NONE Steam 0 RUN: c4310772-57ef-426e-a005-24457548c569